fUST/lending_fUST_20250821
["ID","MTS","AMOUNT","RATE_DAILY","PERIOD"]
[380378288,1755715844603,-151.0,0.00027257,7]
[380378289,1755715844620,-151.0,0.00027257,7]
[380378290,1755715844629,-151.0,0.00027257,7]
[380378291,1755715844638,-277.741197,0.00027257,7]
[380378292,1755715844647,-151.0,0.00027257,7]
[380378293,1755715844656,-151.0,0.00027257,7]
[380378294,1755715844665,-151.0,0.00027257,7]
[380378295,1755715844674,-151.0,0.00027257,7]
[380378296,1755715844683,-151.0,0.00027257,7]
[380378297,1755715844692,-151.0,0.00027257,7]
[380378298,1755715844701,-151.0,0.00027257,7]
[380378299,1755715844710,-151.0,0.00027257,7]
[380378300,1755715844719,-151.0,0.00027257,7]
[380378301,1755715844728,-151.0,0.00027257,7]
[380378302,1755715844738,-151.0,0.00027257,7]
[380378303,1755715844747,-151.0,0.00027257,7]
[380378304,1755715844756,-151.0,0.00027257,7]
[380378305,1755715844766,-151.0,0.00027257,7]
[380378306,1755715844775,-151.0,0.00027257,7]
[380378307,1755715844784,-151.0,0.00027257,7]
[380378308,1755715844793,-1000.0,0.00027257,2]
[380378309,1755715844802,-1000.0,0.00027257,2]
[380378310,1755715844811,-1000.0,0.00027257,2]
[380378311,1755715844820,-1000.0,0.00027257,2]
[380378312,1755715844829,-1000.0,0.00027257,2]
[380378313,1755715844838,-1000.0,0.00027257,2]
[380378314,1755715844848,-1000.0,0.00027257,2]
[380378315,1755715844857,-1000.0,0.00027257,2]
[380378316,1755715844866,-1000.0,0.00027257,2]
[380378317,1755715844877,-1000.0,0.00027257,2]
[380378318,1755715844887,-1000.0,0.00027257,2]
[380378319,1755715844896,-1000.0,0.00027257,2]
[380378320,1755715844905,-1000.0,0.00027257,2]
[380378321,1755715844914,-1000.0,0.00027257,2]
[380378322,1755715844924,-1000.0,0.00027257,2]
[380378323,1755715844933,-1000.0,0.00027257,2]
[380378324,1755715844942,-1000.0,0.00027257,2]
[380378325,1755715844952,-1000.0,0.00027257,2]
[380378326,1755715844962,-810.945368,0.00027257,2]
[380378327,1755715844972,-151.0,0.00027257,7]
[380378328,1755715844982,-151.0,0.00027257,7]
[380378329,1755715844991,-151.0,0.00027257,7]
[380378330,1755715845001,-151.0,0.00027257,7]
[380378331,1755715845010,-151.0,0.00027257,7]
[380378332,1755715845020,-151.0,0.00027257,7]
[380378333,1755715845029,-151.0,0.00027257,7]
[380378334,1755715845038,-151.0,0.00027257,7]
[380378335,1755715845048,-151.0,0.00027257,7]
[380378336,1755715845058,-151.0,0.00027257,7]
[380378337,1755715845067,-151.0,0.00027257,7]
[380378338,1755715845076,-151.0,0.00027258,7]
[380378339,1755715845086,-151.0,0.00027258,7]
[380378340,1755715845095,-256.892,0.00027258,7]
[380378341,1755715845104,-4046.15655394,0.00027258,2]
[380378342,1755715845114,-161929.6732125,0.00027259,20]
[380378343,1755715845453,-1206.39,0.00021889,3]
[380378344,1755715845462,-2412.78,0.00023259,3]
[380378345,1755715845472,-84.92419323,0.00023984,2]
[380378347,1755715845519,-199.0,0.00022236,20]
[380378348,1755715845528,-147.32149076,0.00023984,2]
[380378349,1755715845538,-160.8718701,0.00026411,2]
[380378350,1755715845547,-581.0009137,0.00026411,2]
[380378351,1755715845556,-38084.06272704,0.00027259,20]
[380378352,1755715845568,-4538.7939997,0.00027259,20]
[380378353,1755715845579,-1523.65460559,0.00027259,20]
[380378355,1755715846230,-76072.4245262,0.00027259,20]
[380378357,1755715846242,-46133.5306118,0.00027259,20]
[380378360,1755716232555,10000.0,0.00027397,120]
[380378361,1755716240246,10000.0,0.00027397,120]
[380378362,1755716248275,10000.0,0.00027397,120]
[380378364,1755716274082,158.857246,0.00013699,2]
[380378365,1755716298398,5800.0,0.00027397,120]
[380378368,1755716800098,-314.42738468,0.000199,2]
[380378374,1755716852091,-27.95195834,0.000199,2]
[380378375,1755716852112,-127.71449015,0.00020835,2]
[380378376,1755716949128,-311.14927316,0.000199,2]
[380378419,1755717032326,-24.01600715,0.000199,2]
[380378420,1755717032337,-335.16528018,0.00020835,2]
[380378421,1755717032346,-185.99899434,0.00021771,2]
[380378422,1755717032357,-149.16628584,0.00021771,2]
[380378423,1755717032367,-158.857246,0.00021918,2]
[380378424,1755717032376,-82.88706792,0.00022233,2]
[380378425,1755717032387,-76.3973471,0.00022233,2]
[380378426,1755717032396,-501.86227573,0.00022333,2]
[380378427,1755717032406,-506.02925898,0.00022333,2]
[380378428,1755717032415,-463.40300172,0.00022333,2]
[380378739,1755717041573,-36.59699828,0.00022333,2]
[380378741,1755717041582,-335.16528018,0.00022706,2]
[380378742,1755717041591,-159.28441502,0.000229,2]
[380378744,1755717041601,-300.0,0.0002297,20]
[380378745,1755717041610,-590.73640336,0.00022999,2]
[380378751,1755717046330,-517.57280667,0.00022999,2]
[380378752,1755717046341,-91.69078997,0.00022999,2]
[380378753,1755717046350,-166.98155179,0.00022999,2]
[380378754,1755717224569,158.857246,0.00013699,2]
[380378761,1755718051134,-587.22262066,0.000199,2]
[380378762,1755718052091,-106.00547247,0.000199,2]
[380378763,1755718052113,-85.50897922,0.00020835,2]
[380378768,1755718160123,-687.40419242,0.000199,2]
[380378801,1755718232627,-35.78048876,0.000199,2]
[380378803,1755718232637,-3000.0,0.000199,2]
[380378804,1755718232646,-937.0,0.00020799,2]
[380378806,1755718232655,-300.0,0.00020799,2]
[380378808,1755718232664,-150.999999,0.00021,2]
[380378809,1755718232673,-490.88463856,0.00021632,2]
[380378811,1755718232682,-723.18468098,0.00021771,2]
[380378813,1755718232694,-203.47,0.000221,2]
[380378815,1755718232703,-420.0,0.00022629,2]
[380378816,1755718232713,-6087.53594762,0.00022706,2]
[380378818,1755718232722,-723.18468098,0.00022706,2]
[380378820,1755718232730,-203.41090295,0.00022784,2]
[380378822,1755718232739,-33156.55131918,0.00022999,2]
[380378824,1755718232750,-1035.66784917,0.00022999,2]
[380378844,1755718240603,-3000.0,0.000199,2]
[380378845,1755718240613,-5695.62242231,0.00022999,2]
[380378846,1755718240622,-160.0,0.00023,2]
[380378847,1755718240631,-414.0,0.00023172,2]
[380378848,1755718240640,-500.0,0.00023173,2]
[380378849,1755718240649,-158.857246,0.00023182,2]
[380378850,1755718240658,-215.82729805,0.00023227,2]
[380378852,1755718240667,-71.39117864,0.00023227,2]
[380378859,1755718243581,-88.60882136,0.00023227,2]
[380378860,1755718243592,-216.9170744,0.00023227,2]
[380378861,1755718243602,-375.94359665,0.00023227,2]
[380378862,1755718243611,-844.05985274,0.00023227,2]
[380378863,1755718243621,-232.24568399,0.00023227,2]
[380378864,1755718243630,-300.0,0.00023539,20]
[380378865,1755718243639,-300.0,0.00023539,20]
[380378866,1755718243649,-300.0,0.00023539,20]
[380378867,1755718243659,-300.0,0.00023539,20]
[380378868,1755718243668,-300.0,0.00023539,20]
[380378870,1755718243677,-300.0,0.00023539,20]
[380378872,1755718243687,-300.0,0.00023539,20]
[380378873,1755718243700,-300.0,0.00023539,20]
[380378875,1755718243710,-300.0,0.00023539,20]
[380378877,1755718243720,-723.18468098,0.00023642,2]
[380378878,1755718243729,-500.0,0.00023773,2]
[380378880,1755718243738,-11.52928978,0.00023787,2]
[380378882,1755718243750,-23538.0,0.00023787,2]
[380378910,1755718246552,-3000.0,0.000199,2]
[380378911,1755718246562,-25736.02222221,0.00023787,2]
[380378912,1755718246571,-160.0,0.00023787,2]
[380378913,1755718246581,-594.92569906,0.000238,7]
[380378914,1755718246715,-233.35430094,0.000238,7]
[380378915,1755718246725,-4204.53013515,0.000239,4]
[380378919,1755718246772,-23614.68986485,0.000239,4]
[380378921,1755718246782,-586.81504302,0.0002398,2]
[380378922,1755718246792,-1900.0,0.00024,2]
[380378923,1755718246802,-4548.08946416,0.00024,60]
[380378924,1755718246812,-260.0,0.00024335,2]
[380378925,1755718246821,-723.18468098,0.00024577,2]
[380378926,1755718246830,-150.0,0.000246,2]
[380378927,1755718246840,-151.0,0.000246,7]
[380378928,1755718246849,-587.0,0.00024621,2]
[380378929,1755718246858,-2081.87378226,0.00024774,2]
[380378930,1755718246867,-151.0,0.000248,7]
[380378931,1755718246877,-360.0,0.00024883,2]
[380378932,1755718246887,-7139.78,0.000249,7]
[380378933,1755718246896,-414.62015401,0.0002494,2]
[380378934,1755718246905,-15904.91854905,0.0002499,2]
[380378935,1755718246914,-151.0,0.00025011,7]
[380378936,1755718246924,-157.07725497,0.00025039,2]
[380378937,1755718246933,-317.49925833,0.00025039,2]
[380378938,1755718246942,-158.22272979,0.00025039,2]
[380378939,1755718246952,-215.29541809,0.00025039,2]
[380378940,1755718246963,-178.22006875,0.00025039,2]
[380378941,1755718246972,-500.0,0.00025039,2]
[380378942,1755718246981,-500.0,0.00025039,2]
[380378943,1755718246990,-500.0,0.00025039,2]
[380378944,1755718246999,-281.96616009,0.00025039,2]
[380378945,1755718247008,-500.0,0.00025039,2]
[380378946,1755718247016,-500.0,0.00025039,2]
[380378947,1755718247025,-500.0,0.00025039,2]
[380378948,1755718247035,-87909.03576103,0.0002504,2]
[380378973,1755718497155,158.857246,0.00013699,2]
[380378975,1755719132269,-199.0,0.00023439,20]
[380378976,1755719132293,-115.48255426,0.00023641,2]
[380378977,1755719146204,762.7510293,0.000198,2]
[380378978,1755719211091,-226.02499783,0.000199,2]
[380378979,1755719246971,13760.6772327,0.000198,2]
[380378980,1755719313501,150.0,0.000189,2]
[380378981,1755719345099,-4827.94675518,0.00019503,2]
[380378982,1755719351091,-172.05324482,0.00019503,2]
[380378983,1755719351111,-188.41253449,0.000197,2]
[380378984,1755719351132,-300.0,0.00019772,2]
[380378985,1755719351152,-500.0,0.00019773,2]
[380378986,1755719351171,-474.74130098,0.00019773,2]
[380378987,1755719351191,-500.0,0.00019773,2]
[380378988,1755719351210,-500.0,0.00019773,2]
[380378989,1755719351229,-500.0,0.00019773,2]
[380378990,1755719351248,-500.0,0.00019773,2]
[380378991,1755719351270,-500.0,0.00019773,2]
[380378992,1755719351290,-167.76922878,0.00019773,2]
[380378993,1755719351309,-254.79186832,0.00019773,2]
[380378994,1755719351329,-426.6840499,0.00019773,2]
[380378995,1755719351347,-500.0,0.00019773,2]
[380378996,1755719351365,-500.0,0.00019773,2]
[380378997,1755719351384,-490.0,0.00019773,2]
[380378998,1755719351407,-489.41512049,0.00019773,2]
[380378999,1755719351426,-500.0,0.00019773,2]
[380379000,1755719351449,-500.0,0.00019773,2]
[380379001,1755719351471,-500.0,0.00019773,2]
[380379002,1755719351493,-500.0,0.00019773,2]
[380379003,1755719351513,-500.0,0.00019773,2]
[380379004,1755719351535,-500.0,0.00019773,2]
[380379005,1755719351554,-525.92403447,0.00019773,2]
[380379006,1755719351575,-227.27426636,0.00019773,2]
[380379007,1755719351595,-500.0,0.00019773,2]
[380379008,1755719351615,-414.74941955,0.00019773,2]
[380379010,1755719366125,166.80804,0.00019083,2]
[380379011,1755719366761,166.80804,0.00019114,2]
[380379012,1755719367065,166.80804,0.00019144,2]
[380379013,1755719367114,-319.20187882,0.00019673,2]
[380379014,1755719367134,-319.20187878,0.00019705,2]
[380379015,1755719367154,-319.20187878,0.00019736,2]
[380379016,1755719367173,-319.20187878,0.00019768,2]
[380379017,1755719367194,-85.25058045,0.00019773,2]
[380379018,1755719367214,-500.59189067,0.00019773,2]
[380379019,1755719367234,-500.0,0.00019773,2]
[380379020,1755719367254,-500.0,0.00019773,2]
[380379021,1755719367274,-500.06002785,0.00019773,2]
[380379022,1755719367294,-319.20187878,0.000198,2]
[380379023,1755719367313,-2573.21552707,0.000198,2]
[380379024,1755719367458,166.80804,0.00019175,2]
[380379025,1755719367740,545.02390258,0.00019179,2]
[380379028,1755719387370,500.0,0.00026259,120]
[380379029,1755719388133,500.0,0.00026259,120]
[380379030,1755719388894,500.0,0.00026259,120]
[380379031,1755719389511,407.04321013,0.00024658,120]
[380379032,1755719389669,500.0,0.00026259,120]
[380379033,1755719390467,500.0,0.00026259,120]
[380379034,1755719391238,500.0,0.00026259,120]
[380379036,1755719391997,500.0,0.00026259,120]
[380379037,1755719392927,500.0,0.00026259,120]
[380379038,1755719393553,500.0,0.00026259,120]
[380379039,1755719394351,234.52,0.00026259,120]
[380379044,1755719423670,200.0,0.00027,120]
[380379063,1755719434938,571.8157,0.00027,120]
[380379101,1755719435377,-290.74632319,0.00019673,2]
[380379103,1755719435387,-352.42393218,0.00019773,2]
[380379109,1755719435433,-147.57606782,0.00019773,2]
[380379111,1755719435443,-258.85517389,0.00019773,2]
[380379113,1755719435454,-500.0,0.00019773,2]
[380379115,1755719435463,-500.0,0.00019773,2]
[380379117,1755719435472,-504.89955754,0.00019773,2]
[380379119,1755719435482,-500.68961196,0.00019773,2]
[380379121,1755719435492,-212.64944664,0.00019773,2]
[380379123,1755719435502,-500.0,0.00019773,2]
[380379125,1755719435513,-500.0,0.00019773,2]
[380379127,1755719435522,-500.0,0.00019773,2]
[380379129,1755719435531,-500.0,0.00019773,2]
[380379131,1755719435540,-500.0,0.00019773,2]
[380379134,1755719435550,-300.0,0.00019798,2]
[380379137,1755719435560,-300.0,0.00019799,2]
[380379140,1755719435570,-300.0,0.00019799,2]
[380379143,1755719435580,-300.0,0.00019799,2]
[380379146,1755719435589,-300.0,0.00019799,2]
[380379149,1755719435598,-1200.0,0.00019799,2]
[380379152,1755719435608,-20279.24471237,0.000198,2]
[380379154,1755719435619,-731.82974463,0.000198,2]
[380379222,1755719438068,-179.34252224,0.00019476,2]
[380379224,1755719438078,-720.54403236,0.000198,2]
[380379228,1755719438117,15897.1243987,0.00018825,2]
[380379921,1755719445696,-659.0834951,0.000198,2]
[380379928,1755719445894,-2000.0,0.000198,2]
[380380164,1755719448114,150.5,0.0002489,120]
[380380192,1755719448392,150.5,0.0002489,120]
[380380209,1755719448547,150.5,0.0002488,120]
[380380246,1755719448882,150.5,0.0002488,120]
[380380258,1755719448985,274.94,0.0002487,120]
[380380294,1755719449319,150.5,0.0002487,120]
[380380340,1755719449759,150.5,0.0002497,120]
[380380371,1755719450202,150.5,0.0002496,120]
[380380418,1755719450652,217.88,0.0002495,120]
[380381318,1755719460211,500.0,0.00026259,120]
[380382358,1755719473264,158.790177,0.00013699,2]
[380382383,1755719628309,1429.200999,0.00027397,120]
[380382384,1755719664463,28195.1240981,0.00018735,2]
[380382385,1755719761739,943.1134774,0.00018697,2]
[380382386,1755719777935,1582.6684932,0.00018701,2]
[380382387,1755719783802,5000.0,0.00019178,2]
[380382388,1755719801543,897.156144,0.00018658,2]
[380382389,1755719817549,4243.2297292,0.00018611,2]
[380382390,1755719832166,646.30224852,0.00027397,120]
[380382391,1755719874789,10000.0,0.00018603,2]
[380382392,1755719899153,184.765977,0.00018752,2]
[380382393,1755719899369,184.765977,0.00018752,61]
[380382394,1755719899584,184.765977,0.00018752,120]
[380382395,1755719909129,1000.0,0.00018603,2]
[380382403,1755719961044,666.0,0.00019178,2]
[380382405,1755720125666,75405.29754835,0.00019,2]
[380382406,1755720125697,112306.99451587,0.00019,2]
[380382410,1755720286348,363.4931942,0.00018377,2]
[380382411,1755720343300,184.53952865,0.00019069,2]
[380382412,1755720348023,4639.64043819,0.00019069,2]
[380382413,1755720380801,290.74632319,0.000191,2]
[380382414,1755720414132,-305.587146,0.00019168,2]
[380382415,1755720432851,159.679072,0.00013699,2]
[380382416,1755720436411,5816.0040118,0.00018369,2]
[380382421,1755720574567,224.7653,0.00018593,2]
[380382422,1755720574884,531.925714,0.00018624,2]
[380382423,1755720575217,301.559127,0.00018786,2]
[380382424,1755720575545,163.19392818,0.00018788,2]
[380382427,1755720609915,400.0,0.00024658,120]
[380382428,1755720610237,400.0,0.00027397,120]
[380382735,1755720634808,200.0,0.00027,120]
[380382743,1755720634875,-1248.28683539,0.000192,2]
[380382745,1755720634886,-868.41532542,0.000192,2]
[380382747,1755720634896,-300.0,0.00019368,2]
[380382749,1755720634905,-300.0,0.00019368,2]
[380382751,1755720634915,-300.0,0.00019368,2]
[380382753,1755720634924,-300.0,0.00019368,2]
[380382755,1755720634933,-300.0,0.00019368,2]
[380382757,1755720634943,-998.80143827,0.00019369,2]
[380382759,1755720634952,-1200.0,0.00019369,2]
[380382761,1755720634961,-1200.0,0.00019369,2]
[380382763,1755720634970,-11301.70489689,0.0001937,2]
[380382858,1755720635947,500.0,0.00026259,120]
[380382910,1755720636470,500.0,0.00026259,120]
[380382965,1755720637243,500.0,0.00026259,120]
[380382970,1755720637838,-38698.29510311,0.0001937,2]
[380382971,1755720637847,-500.0,0.0001937,2]
[380382972,1755720637857,-500.0,0.0001937,2]
[380382973,1755720637866,-500.0,0.0001937,2]
[380382974,1755720637875,-500.0,0.0001937,2]
[380382975,1755720637884,-500.0,0.0001937,2]
[380382976,1755720637894,-500.0,0.0001937,2]
[380382977,1755720637903,-500.0,0.0001937,2]
[380382978,1755720637912,-500.0,0.0001937,2]
[380382979,1755720637922,-8717.26531895,0.00019573,2]
[380382980,1755720637931,-1000.55433446,0.00019599,2]
[380382981,1755720637940,-8299.00408407,0.000197,2]
[380382982,1755720637949,-6630.80000242,0.000197,2]
[380382983,1755720637958,-150.0,0.00019772,2]
[380382984,1755720637967,-500.0,0.00019773,2]
[380382985,1755720637976,-500.0,0.00019773,2]
[380382986,1755720637985,-500.0,0.00019773,2]
[380382987,1755720637994,-163.76535796,0.00019773,2]
[380382988,1755720638003,-500.0,0.00019773,2]
[380382989,1755720638012,-380.52724378,0.00019773,2]
[380382990,1755720638021,-500.0,0.00019773,2]
[380382991,1755720638030,-500.0,0.00019773,2]
[380382992,1755720638040,-500.0,0.00019773,2]
[380382993,1755720638049,-500.0,0.00019773,2]
[380382994,1755720638057,-500.0,0.00019773,2]
[380382995,1755720638067,-500.0,0.00019773,2]
[380382996,1755720638076,-500.0,0.00019773,2]
[380382997,1755720638085,-502.14370261,0.00019773,2]
[380382998,1755720638094,-500.0,0.00019773,2]
[380382999,1755720638103,-500.0,0.00019773,2]
[380383000,1755720638112,-500.0,0.00019773,2]
[380383001,1755720638121,-500.0,0.00019773,2]
[380383002,1755720638130,-500.74460077,0.00019773,2]
[380383003,1755720638139,-553.85251724,0.00019773,2]
[380383004,1755720638148,-500.0,0.00019773,2]
[380383005,1755720638157,-500.0,0.00019773,2]
[380383006,1755720638166,-500.0,0.00019773,2]
[380383007,1755720638175,-543.59259108,0.00019773,2]
[380383008,1755720638184,-500.0,0.00019773,2]
[380383009,1755720638193,-500.0,0.00019773,2]
[380383010,1755720638203,-500.0,0.00019773,2]
[380383011,1755720638212,-500.0,0.00019773,2]
[380383012,1755720638220,-500.0,0.00019773,2]
[380383013,1755720638229,-151.0,0.00019773,2]
[380383014,1755720638238,-151.0,0.00019773,2]
[380383015,1755720638248,-500.0,0.00019788,2]
[380383016,1755720638257,-151.699238,0.00019788,2]
[380383017,1755720638267,-151.0,0.00019788,2]
[380383018,1755720638276,-151.0,0.00019788,2]
[380383019,1755720638285,-151.0,0.00019788,2]
[380383020,1755720638295,-151.0,0.00019788,2]
[380383021,1755720638303,-151.0,0.00019788,2]
[380383022,1755720638314,-151.0,0.00019788,2]
[380383023,1755720638323,-151.0,0.00019788,2]
[380383024,1755720638332,-151.0,0.00019788,2]
[380383025,1755720638341,-151.0,0.00019788,2]
[380383026,1755720638350,-151.0,0.00019788,2]
[380383027,1755720638359,-151.496177,0.00019788,2]
[380383028,1755720638369,-151.0,0.00019788,2]
[380383029,1755720638378,-151.0,0.00019788,2]
[380383030,1755720638388,-151.0,0.00019788,2]
[380383031,1755720638397,-151.0,0.00019788,2]
[380383032,1755720638406,-151.0,0.00019788,2]
[380383033,1755720638415,-151.0,0.00019788,2]
[380383035,1755720638424,-153.432833,0.00019788,2]
[380383036,1755720638434,-151.0,0.00019788,2]
[380383037,1755720638443,-151.0,0.00019788,2]
[380383038,1755720638452,-151.0,0.00019788,2]
[380383039,1755720638462,-151.0,0.00019788,2]
[380383040,1755720638471,-151.0,0.00019788,2]
[380383041,1755720638481,-151.0,0.00019788,2]
[380383042,1755720638490,-151.0,0.00019788,2]
[380383043,1755720638499,-151.0,0.00019788,2]
[380383044,1755720638508,-151.0,0.00019788,2]
[380383045,1755720638518,-151.0,0.00019788,2]
[380383046,1755720638527,-151.0,0.00019788,2]
[380383047,1755720638537,-151.0,0.00019788,2]
[380383048,1755720638546,-151.0,0.00019788,2]
[380383049,1755720638556,-151.0,0.00019788,2]
[380383050,1755720638567,-160.803441,0.00019788,2]
[380383051,1755720638576,-238.749711,0.00019788,2]
[380383052,1755720638586,-151.0,0.00019788,2]
[380383054,1755720638595,-151.0,0.00019788,2]
[380383056,1755720638604,-151.0,0.00019788,2]
[380383057,1755720638614,-151.0,0.00019788,2]
[380383059,1755720638624,-151.0,0.00019788,2]
[380383060,1755720638633,-151.0,0.00019788,2]
[380383061,1755720638643,-151.45715,0.00019788,2]
[380383062,1755720638652,-151.190404,0.00019788,2]
[380383063,1755720638662,-151.0,0.00019788,2]
[380383064,1755720638673,-151.0,0.00019788,2]
[380383065,1755720638682,-151.0,0.00019788,2]
[380383066,1755720638691,-151.0,0.00019788,2]
[380383067,1755720638701,-176.275941,0.00019788,2]
[380383068,1755720638711,-636.530134,0.00019788,2]
[380383069,1755720638721,-176.275941,0.00019788,2]
[380383070,1755720638731,-636.530134,0.00019788,2]
[380383071,1755720638741,-176.275941,0.00019788,2]
[380383072,1755720638753,-636.530134,0.00019788,2]
[380383074,1755720638763,-636.530134,0.00019788,2]
[380383076,1755720638771,-176.275941,0.00019788,2]
[380383078,1755720638781,-151.0,0.00019788,2]
[380383079,1755720638791,-151.0,0.00019788,2]
[380383081,1755720638801,-151.0,0.00019788,2]
[380383083,1755720638812,-151.0,0.00019788,2]
[380383085,1755720638821,-151.0,0.00019788,2]
[380383087,1755720638832,-151.0,0.0001979,2]
[380383089,1755720638842,-151.0,0.0001979,2]
[380383091,1755720638851,-151.0,0.0001979,2]
[380383093,1755720638860,-299.8653,0.0001979,2]
[380383095,1755720638870,-151.0,0.0001979,2]
[380383097,1755720638879,-151.0,0.0001979,2]
[380383099,1755720638889,-151.0,0.0001979,2]
[380383101,1755720638898,-151.0,0.0001979,2]
[380383103,1755720638907,-151.0,0.0001979,2]
[380383105,1755720638917,-321.507334,0.0001979,2]
[380383107,1755720638926,-321.507334,0.0001979,2]
[380383109,1755720638936,-321.507334,0.0001979,2]
[380383111,1755720638946,-321.507334,0.0001979,2]
[380383121,1755720639034,-321.32,0.0001979,3]
[380383123,1755720639043,-482.02,0.0001979,3]
[380383125,1755720639052,-239.89,0.0001979,3]
[380383127,1755720639063,-175.92,0.0001979,3]
[380383129,1755720639072,-207.91,0.0001979,3]
[380383131,1755720639082,-613.36978634,0.00019797,2]
[380383133,1755720639091,-500.0,0.00019797,2]
[380383135,1755720639101,-500.0,0.00019797,2]
[380383137,1755720639110,-500.0,0.00019797,2]
[380383139,1755720639119,-500.0,0.00019797,2]
[380383141,1755720639129,-500.0,0.00019797,2]
[380383143,1755720639138,-877.94577848,0.00019797,2]
[380383145,1755720639147,-500.0,0.00019797,2]
[380383147,1755720639157,-500.0,0.00019797,2]
[380383149,1755720639167,-365.85078944,0.00019797,2]
[380383151,1755720639177,-500.0,0.00019797,2]
[380383153,1755720639186,-500.0,0.00019797,2]
[380383155,1755720639195,-500.0,0.00019797,2]
[380383158,1755720639205,-877.94577848,0.00019797,2]
[380383160,1755720639215,-500.0,0.00019797,2]
[380383162,1755720639224,-500.0,0.00019797,2]
[380383164,1755720639234,-500.0,0.00019797,2]
[380383166,1755720639243,-455.40934517,0.00019797,2]
[380383168,1755720639253,-500.0,0.00019797,2]
[380383170,1755720639263,-877.94577848,0.00019797,2]
[380383172,1755720639272,-500.0,0.00019797,2]
[380383174,1755720639281,-500.0,0.00019797,2]
[380383176,1755720639291,-500.0,0.00019797,2]
[380383178,1755720639300,-500.0,0.00019797,2]
[380383180,1755720639311,-500.0,0.00019797,2]
[380383182,1755720639320,-877.94577848,0.00019797,2]
[380383184,1755720639330,-500.0,0.00019797,2]
[380383186,1755720639340,-500.0,0.00019797,2]
[380383188,1755720639353,-500.0,0.00019797,2]
[380383191,1755720639364,-877.94577848,0.00019797,2]
[380383193,1755720639374,-637.62749611,0.00019797,2]
[380383195,1755720639384,-500.0,0.00019797,2]
[380383197,1755720639394,-500.0,0.00019797,2]
[380383199,1755720639404,-251.5838052,0.00019797,2]
[380383201,1755720639414,-877.94577848,0.00019797,2]
[380383203,1755720639424,-500.0,0.00019797,2]
[380383205,1755720639436,-500.0,0.00019797,2]
[380383207,1755720639445,-500.0,0.00019797,2]
[380383209,1755720639454,-500.0,0.00019797,2]
[380383211,1755720639464,-877.94577848,0.00019797,2]
[380383217,1755720639474,-500.0,0.00019797,2]
[380383222,1755720639485,-500.0,0.00019797,2]
[380383226,1755720639494,-500.0,0.00019797,2]
[380383231,1755720639504,-500.0,0.00019797,2]
[380383235,1755720639513,-877.94577848,0.00019797,2]
[380383238,1755720639523,-500.0,0.00019797,2]
[380383241,1755720639533,-500.0,0.00019797,2]
[380383244,1755720639543,-500.0,0.00019797,2]
[380383247,1755720639553,-500.0,0.00019797,2]
[380383250,1755720639563,-877.94577848,0.00019797,2]
[380383252,1755720639572,-500.0,0.00019797,2]
[380383254,1755720639582,-500.0,0.00019797,2]
[380383256,1755720639592,-500.0,0.00019797,2]
[380383258,1755720639602,-877.94577848,0.00019797,2]
[380383260,1755720639612,-500.0,0.00019797,2]
[380383262,1755720639622,-647.358726,0.00019797,2]